bitfinex/quotes_SOLUSD_20250829
["timestamp","ask_amount","ask_price","bid_price","bid_amount"]
[1756433898227,39.06,215.66,215.64,0.68]
[1756433898428,39.06,215.66,215.65,0.68]
[1756433898625,45.95374449,215.66,215.62,5.31768133]
[1756433898828,45.95374449,215.66,215.62,4.63768133]
[1756433899137,6.89374449,215.64,215.6,5.51818373]
[1756433899321,6.89374449,215.63,215.6,0.88]
[1756433899935,6.89374449,215.62,215.6,0.88]
[1756433900429,43.69696463,215.66,215.6,0.88]
[1756433900637,6.89374449,215.63,215.6,0.88]
[1756433901415,6.89374449,215.63,215.6,0.2]
[1756433901915,6.89374449,215.63,215.6,0.88]
[1756433902326,6.89374449,215.63,215.6,0.2]
[1756433902327,11.5313272,215.63,215.6,0.2]
[1756433902527,6.89374449,215.62,215.6,0.2]
[1756433903133,6.89374449,215.63,215.6,0.2]
[1756433903336,43.69711809,215.66,215.6,0.88]
[1756433903533,6.89374449,215.64,215.61,0.68]
[1756433903737,39.06,215.65,215.6,4.83820393]
[1756433903738,6.89374449,215.63,215.6,0.2]
[1756433904540,6.89374449,215.62,215.6,0.2]
[1756433905229,6.89374449,215.63,215.6,0.2]
[1756433905740,0.06,215.68,215.62,6.89374449]
[1756433906041,6.89374449,215.67,215.61,7.85806763]
[1756433906536,46.01374449,215.68,215.62,6.89374449]
[1756433906718,46.01374449,215.68,215.63,4.63757362]
[1756433906918,46.01374449,215.68,215.64,0.68]
[1756433907852,0.06,215.68,215.65,0.68]
[1756433908024,0.06,215.68,215.66,7.57374449]
[1756433908217,0.06,215.68,215.67,6.89374449]
[1756433908427,0.06,215.68,215.67,7.57374449]
[1756433908823,0.06,215.68,215.67,6.89374449]
[1756433909026,0.06,215.68,215.67,7.85806763]
[1756433909823,0.06,215.68,215.67,12.49478112]
[1756433910632,0.06,215.68,215.67,5.60103663]
[1756433910835,0.06,215.68,215.67,12.49478112]
[1756433912049,0.06,215.68,215.67,107.25404647]
[1756433912234,0.06,215.71,215.7,20.4893385]
[1756433912645,0.06,215.71,215.7,21.46366164]
[1756433913142,0.06,215.71,215.7,23.32175064]
[1756433914137,0.06,215.71,215.69,11.53002804]
[1756433914330,0.06,215.71,215.69,4.63628355]
[1756433914542,0.06,215.71,215.69,19.32628355]
[1756433914735,0.06,215.71,215.69,26.22002804]
[1756433915131,0.06,215.71,215.7,7.17806763]
[1756433915451,0.06,215.71,215.7,60.50366164]
[1756433915759,0.06,215.71,215.7,0.28432314]
[1756433915961,0.06,215.71,215.7,6.89374449]
[1756433916258,0.06,215.71,215.7,11.81413624]
[1756433917951,0.06,215.71,215.7,4.63606861]
[1756433919739,0.06,215.71,215.7,12.50413624]
[1756433920339,0.06,215.71,215.7,58.22598576]
[1756433920541,0.06,215.71,215.7,65.11973025]
[1756433920953,0.06,215.71,215.7,146.28333711]
[1756433920954,1e-08,215.71,215.7,146.28333711]
[1756433921159,1e-08,215.71,215.7,145.81973025]
[1756433921741,1e-08,215.73,215.72,13.87991715]
[1756433921977,1e-08,215.74,215.73,13.87991715]
[1756433922143,1e-08,215.74,215.73,26.09908554]
[1756433922339,1e-08,215.74,215.73,65.11908554]
[1756433923369,1e-08,215.74,215.73,65.58262793]
[1756433923859,1e-08,215.74,215.73,79.58262793]
[1756433924261,1e-08,215.74,215.73,162.14019793]
[1756433924459,1e-08,215.74,215.73,161.67665554]
[1756433925261,0.06,215.81,215.75,26.0]
[1756433925565,0.06,215.81,215.78,6.89374449]
[1756433925969,0.06,215.81,215.78,59.4893385]
[1756433926353,0.06,215.81,215.78,64.1236883]
[1756433926545,0.75,215.79,215.78,57.22994381]
[1756433926746,0.06,215.79,215.78,64.40801144]
[1756433930063,0.06,215.79,215.78,11.81241743]
[1756433930364,0.06,215.79,215.78,50.81241743]
[1756433931151,0.06,215.79,215.78,131.51241743]
[1756433932250,0.75,215.79,215.78,119.7]
[1756433932562,0.75,215.79,215.78,80.7]
[1756433934663,0.75,215.79,215.78,92.22809429]
[1756433934664,0.06,215.79,215.78,92.22809429]
[1756433934969,0.06,215.79,215.78,131.20809429]
[1756433935672,0.06,215.79,215.78,132.18241743]
[1756433935879,0.06,215.79,215.78,131.49241743]
[1756433936671,0.06,215.79,215.78,145.08801144]
[1756433936850,0.06,215.79,215.78,106.10801144]
[1756433937052,0.06,215.79,215.78,99.21426695]
[1756433937274,0.06,215.79,215.78,145.08801144]
[1756433938565,0.06,215.79,215.78,92.51241743]
[1756433938972,0.06,215.79,215.78,131.49241743]
[1756433939171,0.06,215.79,215.78,124.59867294]
[1756433939383,0.06,215.79,215.78,85.61867294]
[1756433939574,0.75,215.79,215.78,126.55374449]
[1756433939880,0.06,215.79,215.78,131.18809429]
[1756433940576,0.06,215.79,215.78,92.22809429]
[1756433940778,7.64374449,215.79,215.76,0.03]
[1756433940983,6.89374449,215.77,215.76,0.03]
[1756433941482,7.58374449,215.77,215.76,0.03]
[1756433941661,0.69,215.77,215.76,0.03]
[1756433942064,7.58374449,215.77,215.76,0.03]
[1756433943192,0.69,215.77,215.76,0.03]
[1756433943890,0.06,215.79,215.76,6.92374449]
[1756433944072,0.75,215.79,215.78,6.89374449]
[1756433944274,0.06,215.79,215.78,6.89374449]
[1756433944462,0.06,215.79,215.78,7.17806763]
[1756433944662,0.06,215.79,215.78,25.40801144]
[1756433944982,0.06,215.79,215.78,26.08801144]
[1756433946260,0.06,215.79,215.78,85.61867294]
[1756433946498,0.06,215.79,215.78,124.57867294]
[1756433946664,0.06,215.79,215.78,131.47241743]
[1756433947284,0.06,215.79,215.78,138.57867294]
[1756433947685,0.75,215.79,215.76,26.03]
[1756433947884,6.89374449,215.77,215.76,0.03]
[1756433948274,7.58374449,215.77,215.76,0.03]
[1756433949169,0.75,215.79,215.76,0.03]
[1756433949386,0.75,215.79,215.76,4.66477938]
[1756433949387,0.06,215.79,215.76,4.66477938]
[1756433949568,7.58374449,215.78,215.76,0.03]
[1756433949886,6.89374449,215.77,215.76,0.03]
[1756433950073,7.58374449,215.77,215.76,0.03]
[1756433951885,0.75,215.79,215.76,0.03]
[1756433952071,0.69,215.78,215.76,0.03]
[1756433952268,0.06,215.77,215.76,0.03]
[1756433952470,0.75,215.77,215.76,0.03]
[1756433955400,12.27830907,215.77,215.76,0.03]
[1756433955584,12.27830907,215.77,215.73,0.03]
[1756433955777,6.89374449,215.74,215.73,0.03]
[1756433955969,11.52895353,215.74,215.73,0.03]
[1756433956296,12.21895353,215.74,215.73,0.03]
[1756433959205,5.32520904,215.74,215.73,0.03]
[1756433959413,12.21895353,215.74,215.73,0.03]
[1756433960408,26.09887068,215.74,215.73,0.03]
[1756433960800,90.73454754,215.74,215.73,0.03]
[1756433961317,77.13895353,215.74,215.73,0.03]
[1756433962528,32.89374449,215.74,215.73,0.03]
[1756433963238,0.06,215.77,215.73,7.60374449]
[1756433963518,6.89374449,215.76,215.73,0.03]
[1756433963694,6.89374449,215.75,215.73,0.03]
[1756433963896,6.89374449,215.76,215.73,0.03]
[1756433964513,6.95374449,215.77,215.73,0.71]
[1756433964696,6.89374449,215.76,215.73,0.03]
[1756433965201,6.95374449,215.77,215.74,0.68]
[1756433965395,0.06,215.77,215.74,0.68]
[1756433965594,0.06,215.77,215.73,0.03]
[1756433965895,0.06,215.77,215.73,0.71]
[1756433966519,0.06,215.77,215.74,4.63520904]
[1756433966724,6.89374449,215.76,215.73,0.71]
[1756433967628,0.06,215.77,215.73,5.34538893]
[1756433967994,0.06,215.77,215.73,4.66538893]
[1756433968197,6.95374449,215.77,215.73,4.66538893]
[1756433968814,0.06,215.77,215.74,0.68]
[1756433969934,0.06,215.77,215.75,7.57374449]
[1756433970228,0.06,215.77,215.76,0.68]
[1756433970802,0.06,215.77,215.76,12.20852387]
[1756433971223,0.06,215.77,215.76,19.10226887]
[1756433971523,0.06,215.77,215.76,19.38659201]
[1756433971700,0.06,215.77,215.76,100.08659201]
[1756433971899,0.06,215.77,215.76,93.19284752]
[1756433972215,0.06,215.77,215.76,100.08659201]
[1756433972615,0.06,215.77,215.76,93.19284752]
[1756433972923,0.06,215.77,215.76,100.08659201]
[1756433974428,0.06,215.77,215.76,113.68218602]
[1756433975245,0.06,215.79,215.78,26.0]
[1756433975544,0.06,215.79,215.78,153.22150261]
[1756433975720,0.06,215.79,215.78,153.46806763]
[1756433976335,0.06,215.79,215.78,155.32537963]
[1756433977239,0.06,215.79,215.78,121.07972943]
[1756433977743,0.06,215.79,215.78,173.93972943]
[1756433978038,0.06,215.79,215.78,135.07972943]
[1756433978642,0.06,215.79,215.78,173.93972943]
[1756433979436,0.06,215.79,215.78,135.07972943]
[1756433980141,0.06,215.79,215.78,147.96532344]
[1756433980333,0.06,215.79,215.78,186.82532344]
[1756433980534,0.06,215.79,215.78,187.53532344]
[1756433981741,0.06,215.79,215.78,147.96532344]
[1756433982255,0.06,215.79,215.78,179.91157895]
[1756433982419,0.06,215.79,215.78,133.96532344]
[1756433982624,0.06,215.79,215.78,32.77598494]
[1756433982839,0.06,215.79,215.78,6.77598494]
[1756433983049,0.06,215.79,215.78,45.61598494]
[1756433983231,0.06,215.79,215.78,6.77598494]
[1756433983432,0.06,215.79,215.78,45.61598494]
[1756433984236,0.06,215.79,215.78,53.21972943]
[1756433984652,0.06,215.84,215.82,26.0]
[1756433984847,0.06,215.84,215.83,60.78698925]
[1756433985041,0.1,215.9,215.87,39.87991715]
[1756433985233,0.1,215.9,215.87,85.61366164]
[1756433985437,0.1,215.9,215.87,100.32366164]
[1756433985929,0.1,215.9,215.87,40.28432314]
[1756433986250,0.1,215.9,215.87,90.63048528]
[1756433986553,0.1,215.9,215.87,106.08287429]
[1756433988547,0.1,215.9,215.87,110.61278598]
[1756433989355,0.1,215.9,215.87,111.32278598]
[1756433989853,0.1,215.9,215.87,110.61278598]
[1756433990061,0.1,215.9,215.87,191.31278598]
[1756433990556,0.1,215.9,215.87,192.02278598]
[1756433991980,0.1,215.9,215.87,185.10904149]
[1756433992137,0.1,215.9,215.87,192.00278598]
[1756433992536,0.1,215.9,215.87,191.29278598]
[1756433993854,0.1,215.9,215.88,13.87991715]
[1756433994059,0.1,215.9,215.89,59.57366164]
[1756433994365,0.1,215.9,215.89,140.98366164]
[1756433994556,1e-08,215.9,215.89,142.84002564]
[1756433994962,1e-08,215.91,215.9,13.87991715]
[1756433995140,0.1,215.98,215.94,0.28432314]
[1756433995346,0.1,215.98,215.97,6.89374449]
[1756433995569,0.1,215.98,215.97,45.67374449]
[1756433996079,0.1,215.98,215.97,50.30401721]
[1756433996254,0.1,215.98,215.97,64.18393436]
[1756433996564,0.1,215.98,215.97,64.89393436]
[1756433996863,0.1,215.98,215.97,64.18393436]
[1756433997067,0.81,215.98,215.97,6.48603372]
[1756433998143,0.81,215.98,215.97,13.66410135]
[1756433998144,0.1,215.98,215.97,13.66410135]
[1756433999261,0.81,215.98,215.97,6.77035686]
[1756433999672,0.81,215.98,215.97,13.66410135]
[1756434000169,0.1,215.98,215.97,13.66410135]
[1756434000357,0.1,215.98,215.97,52.42410135]
[1756434000667,1e-08,215.98,215.97,67.14272263]
[1756434000864,0.68,216.05,216.02,0.28432314]
[1756434001066,0.68,216.09,216.05,0.28432314]
[1756434001257,0.1,216.1,216.07,7.17806763]
[1756434001768,0.74,216.08,216.07,0.28432314]
[1756434001974,0.74,216.08,216.07,45.91806763]
[1756434002184,0.06,216.08,216.07,43.36812977]
[1756434002349,0.06,216.08,216.07,50.5461974]
[1756434002552,0.74,216.08,216.06,1.855072]
[1756434002748,7.57374449,216.07,216.01,26.0]
[1756434002973,6.89374449,216.02,216.0,38.74]
[1756434003177,0.06,216.08,216.01,0.14216157]
[1756434003374,0.74,216.08,216.04,6.89374449]
[1756434003577,0.68,216.07,216.04,38.74]
[1756434003782,0.68,216.06,216.01,6.893744]
[1756434003956,0.68,216.05,215.99,38.74]
[1756434004158,6.89374449,216.0,215.9,6.89374449]
[1756434004359,6.89374449,216.0,215.87,4.63414688]
[1756434004360,6.89374449,215.94,215.91,38.74]
[1756434004687,0.68,215.96,215.91,52.52748849]
[1756434005059,6.89374449,215.94,215.91,45.633744]
[1756434005255,0.68,215.97,215.91,52.52748849]
[1756434005455,0.68,216.0,215.96,6.89374449]
[1756434005675,0.68,216.0,215.97,38.72]
[1756434006285,0.68,216.0,215.98,4.63005833]
[1756434006581,7.57374449,216.02,215.98,4.63005833]
[1756434006781,0.68,216.05,215.98,11.52380282]
[1756434006995,7.57374449,216.05,215.99,59.53388849]
[1756434007195,0.68,216.05,216.03,0.03]
[1756434007486,7.57374449,216.04,216.03,0.03]
[1756434008483,12.20251693,216.04,216.03,0.03]
[1756434009680,25.79811094,216.04,216.03,0.03]
[1756434009876,25.79811094,216.04,216.0,0.03]
[1756434009877,32.89374449,216.01,216.0,0.03]
[1756434010265,33.57374449,216.01,216.0,0.03]
[1756434010479,38.20315979,216.01,216.0,0.03]
[1756434012188,45.09690428,216.01,216.0,0.03]
[1756434014088,38.20315979,216.01,216.0,0.03]
[1756434014599,16.1984552,216.07,216.0,0.03]
[1756434014798,6.89374449,216.01,216.0,0.03]
[1756434015180,0.06,216.08,216.0,0.69]
[1756434015380,0.06,216.08,216.02,0.28432314]
[1756434015601,0.06,216.08,216.05,6.89374449]
[1756434015782,0.06,216.08,216.06,7.55374449]
[1756434015971,0.06,216.08,216.07,0.66]
[1756434016578,0.06,216.08,216.07,26.06179141]
[1756434017876,1e-08,216.08,216.07,26.06179141]
[1756434018076,1e-08,216.08,216.07,27.91660541]
[1756434018400,6.89374449,216.26,216.17,0.28432314]
[1756434018593,0.78,216.3,216.21,4.62513297]
[1756434018797,6.89374449,216.27,216.21,11.51887746]
[1756434018984,6.89374449,216.28,216.22,7.17806763]
[1756434019385,6.89374449,216.27,216.22,0.94432314]
[1756434019589,6.89374449,216.26,216.2,26.0]
[1756434019786,6.89374449,216.22,216.19,0.28432314]
[1756434020097,6.89374449,216.24,216.19,0.28432314]
[1756434020300,6.89374449,216.26,216.2,7.55374449]
[1756434020501,5.40334273,216.3,216.21,7.83806763]
[1756434020683,6.89374449,216.26,216.21,0.94432314]
[1756434020883,6.89374449,216.27,216.22,0.66]
[1756434021395,6.89374449,216.26,216.22,0.66]
[1756434022689,0.78,216.3,216.22,5.28487752]
[1756434022884,6.89374449,216.27,216.22,5.28487752]
[1756434023081,6.89374449,216.23,216.18,26.0]
[1756434023382,6.89374449,216.21,216.18,4.62569446]
[1756434023905,6.89374449,216.23,216.19,0.66]
[1756434024479,6.89374449,216.23,216.19,5.28552549]
[1756434024788,4.62364124,216.28,216.2,0.66]
[1756434025102,6.89374449,216.23,216.2,0.66]
[1756434025400,6.89374449,216.23,216.19,4.62552549]
[1756434025697,0.06,216.26,216.14,7.17806814]
[1756434025698,6.89374449,216.2,216.14,6.893745]
[1756434025905,6.89374449,216.15,216.09,0.69]
[1756434026074,6.89374449,216.13,216.09,0.69]
[1756434026590,6.84747497,216.13,216.09,0.69]
[1756434027099,6.89374449,216.13,216.09,0.03]
[1756434027484,0.68,216.17,216.09,4.65766586]
[1756434027689,6.89374449,216.13,216.1,0.66]
[1756434028086,0.68,216.17,216.1,0.66]
[1756434028087,6.89374449,216.14,216.1,0.66]
[1756434028281,0.68,216.21,216.13,0.66]
[1756434028598,6.89374449,216.17,216.13,0.66]
[1756434028988,6.89374449,216.17,216.14,5.28663088]
[1756434029190,0.06,216.26,216.2,0.28432314]
[1756434029398,0.06,216.26,216.25,6.89374449]
[1756434030096,0.06,216.26,216.25,7.55374449]
[1756434030283,0.06,216.26,216.25,21.55374449]
[1756434030904,0.06,216.26,216.25,14.66]
[1756434031111,0.06,216.26,216.25,18.62427745]
[1756434031607,0.06,216.26,216.25,14.0]
[1756434031608,9.90403136,216.26,216.25,14.0]
[1756434031809,9.90403136,216.26,216.2,5.60955655]
[1756434032013,9.84403136,216.25,216.2,5.60955655]
[1756434032198,9.90403136,216.26,216.21,0.7]
[1756434032803,9.90403136,216.26,216.22,4.62491906]
[1756434033393,0.06,216.26,216.22,4.62491906]
[1756434033718,0.06,216.26,216.23,9.84403136]
[1756434034317,0.06,216.26,216.22,15.16895042]
[1756434034896,0.06,216.26,216.22,5.32491906]
[1756434035293,0.06,216.26,216.25,9.84403136]
[1756434035612,0.06,216.26,216.21,0.28432314]
[1756434035791,9.84403136,216.25,216.22,4.62478003]
[1756434036187,9.90403136,216.26,216.22,4.62478003]
[1756434036597,0.06,216.26,216.22,4.62478003]
[1756434037024,9.90403136,216.26,216.21,4.62513297]
[1756434037212,9.90403136,216.26,216.21,5.32513297]
[1756434037414,9.84403136,216.24,216.2,4.62534536]
[1756434037713,9.84403136,216.23,216.19,4.62553249]
[1756434038216,9.84403136,216.2,216.17,4.62578346]
[1756434038396,0.7,216.22,216.17,4.62578346]
[1756434038598,9.84403136,216.2,216.17,4.62578346]
[1756434038914,9.84403136,216.22,216.17,5.32578346]
[1756434039096,9.84403136,216.2,216.17,5.32578346]
[1756434039299,9.84403136,216.2,216.17,4.62578346]
[1756434039502,9.84403136,216.21,216.17,5.32578346]
[1756434040424,9.84403136,216.21,216.17,19.32578346]
[1756434040622,0.7,216.25,216.18,0.7]
[1756434040919,9.84403136,216.21,216.17,18.62578346]
[1756434041120,9.84403136,216.2,216.17,4.62578346]
[1756434041320,9.84403136,216.19,216.17,4.62578346]
[1756434041499,9.84403136,216.18,216.15,43.22627199]
[1756434042027,9.84403136,216.16,216.13,30.62664544]
[1756434042216,0.06,216.26,216.21,26.0]
[1756434042426,0.06,216.26,216.25,9.84403136]
[1756434042719,0.06,216.26,216.25,14.46830881]
[1756434042922,0.06,216.26,216.25,29.04822596]
[1756434043827,0.06,216.26,216.25,67.62822596]
[1756434044137,0.06,216.26,216.25,14.0]
[1756434044699,0.06,216.26,216.25,18.62427745]
[1756434044901,0.06,216.26,216.25,28.46830881]
[1756434045596,0.06,216.26,216.25,4.62427745]
[1756434046835,0.06,216.26,216.24,14.46852266]
[1756434047000,0.06,216.26,216.2,10.644031]
[1756434047001,10.54403136,216.25,216.2,10.644031]
[1756434047322,0.06,216.26,216.14,4.62663088]
[1756434047323,9.84403136,216.21,216.14,4.62663088]
[1756434047625,9.84403136,216.19,216.14,4.62663088]
[1756434048014,9.84403136,216.21,216.15,0.7]
[1756434048317,9.84403136,216.21,216.14,14.47066224]
[1756434048520,9.84403136,216.21,216.14,28.47066224]
[1756434048823,9.84403136,216.2,216.14,28.47066224]
[1756434049032,9.84403136,216.18,216.13,4.65683872]
[1756434049226,10.54403136,216.18,216.13,4.65683872]
[1756434050121,9.84403136,216.19,216.13,14.50087008]
[1756434050336,9.84403136,216.14,216.13,0.03]
[1756434050533,10.54403136,216.14,216.13,0.03]
[1756434052213,15.17066224,216.14,216.13,0.03]
[1756434053315,12.19420638,216.14,216.13,0.03]
[1756434054123,23.76078359,216.14,216.1,0.03]
[1756434054332,32.8675755,216.11,216.1,0.03]
[1756434054735,33.5675755,216.11,216.1,0.03]
[1756434055846,72.1275755,216.11,216.1,0.03]
[1756434056054,7.5675755,216.11,216.0,0.03]
[1756434056248,16.19320809,216.14,216.01,4.62933834]
[1756434056249,6.8675755,216.08,216.01,4.62933834]
[1756434056753,7.5675755,216.08,216.01,4.62933834]
[1756434057323,6.8675755,216.08,216.01,0.7]
[1756434057519,6.8675755,216.12,216.06,6.8675755]
[1756434057725,6.8675755,216.17,216.07,0.73]
[1756434057935,6.8675755,216.17,216.11,6.8675755]
[1756434058330,0.7,216.19,216.1,7.5675755]
[1756434058532,6.8675755,216.16,216.1,7.5675755]
[1756434058937,6.8675755,216.15,216.1,0.7]
[1756434059241,6.8675755,216.14,216.09,4.62750701]
[1756434059448,9.85751206,216.15,216.09,15.18501907]
[1756434059954,4.6259888,216.17,216.09,5.32750701]
[1756434059955,9.85751206,216.14,216.09,5.32750701]
[1756434060330,0.71,216.13,216.07,0.03]
[1756434060637,9.85751206,216.11,216.07,0.03]
[1756434060830,0.71,216.13,216.07,0.03]
[1756434061030,43.1862058,216.16,216.07,10.60751206]
[1756434061247,9.85751206,216.13,216.07,10.60751206]
[1756434061466,0.06,216.26,216.08,13.59559401]
[1756434061623,9.85751206,216.21,216.15,9.85751206]
[1756434062041,9.85751206,216.19,216.13,0.72]
[1756434062249,9.85751206,216.21,216.15,9.85751206]
[1756434062453,9.85751206,216.21,216.16,0.72]
[1756434062663,9.85751206,216.2,216.14,9.85751206]
[1756434062872,9.85751206,216.15,216.12,5.34696104]
[1756434063159,9.85751206,216.18,216.13,0.72]
[1756434063319,9.85751206,216.18,216.14,0.72]
[1756434063523,9.85751206,216.17,216.14,0.72]
[1756434063747,9.85751206,216.16,216.12,4.62696104]
[1756434063923,9.85751206,216.16,216.12,5.34696104]
[1756434064125,9.85751206,216.14,216.1,4.62734488]
[1756434064327,0.06,216.26,216.17,26.0]
[1756434064565,0.06,216.26,216.24,9.85751206]
[1756434064733,0.06,216.26,216.21,26.0]
[1756434064922,0.06,216.26,216.24,4.6244396]
[1756434065350,0.06,216.26,216.24,5.3444396]
[1756434067935,9.91751206,216.26,216.21,26.0]
[1756434068135,9.91751206,216.26,216.17,4.6259888]
[1756434068136,9.85751206,216.22,216.17,4.6259888]
[1756434068347,0.71,216.25,216.18,26.72]
[1756434068348,9.85751206,216.23,216.18,26.72]
[1756434068553,9.85751206,216.23,216.18,40.72]
[1756434069043,9.85751206,216.23,216.19,4.62556084]
[1756434069468,0.71,216.22,216.09,0.03]
[1756434069644,9.85751206,216.17,216.14,0.72]
[1756434069839,9.85751206,216.2,216.15,0.72]
[1756434070062,9.85751206,216.19,216.16,0.72]
[1756434070243,5.39422879,216.26,216.13,0.28432314]
[1756434070244,9.85751206,216.18,216.13,0.28432314]
[1756434070444,9.85751206,216.18,216.14,0.72]
[1756434070747,9.85751206,216.17,216.11,10.57751206]
[1756434071152,9.85751206,216.18,216.12,4.62705904]
[1756434071349,9.85751206,216.18,216.12,14.4845711]
[1756434071572,9.85751206,216.17,216.12,4.62705904]
[1756434071760,9.85751206,216.16,216.13,0.72]
[1756434072077,11.62015906,216.26,216.16,39.59559401]
[1756434072078,0.06,216.26,216.16,39.59559401]
[1756434072277,0.06,216.26,216.23,9.85751206]
[1756434072485,0.06,216.26,216.25,9.85751206]
[1756434072848,0.06,216.26,216.25,10.57751206]
[1756434073257,0.06,216.26,216.25,15.20178951]
[1756434073779,9.91751206,216.26,216.23,14.0]
[1756434074467,9.91751206,216.26,216.23,18.6246957]
[1756434074807,0.06,216.26,216.23,18.6246957]
[1756434076895,9.91751206,216.26,216.23,18.6246957]
[1756434077280,0.06,216.26,216.23,18.6246957]
[1756434077480,9.91751206,216.26,216.23,14.0]
[1756434077678,0.06,216.26,216.21,4.62513297]
[1756434077889,0.06,216.26,216.22,0.72]
[1756434078081,0.06,216.26,216.22,5.34470938]
[1756434079113,0.06,216.26,216.25,35.85751206]
[1756434079283,0.06,216.26,216.25,74.7618352]
[1756434079612,0.06,216.26,216.25,75.4818352]
[1756434079816,0.06,216.26,216.22,4.62470938]
[1756434079982,0.06,216.26,216.21,133.78262691]
[1756434080288,0.06,216.26,216.22,10.57751206]
[1756434080495,0.06,216.26,216.22,24.57751206]
[1756434080693,9.91751206,216.26,216.22,14.0]
[1756434080885,9.91751206,216.26,216.21,85.32511485]
[1756434080886,9.85751206,216.24,216.21,85.32511485]
[1756434081205,9.85751206,216.24,216.19,4.62537336]
[1756434081206,9.85751206,216.22,216.19,4.62537336]
[1756434081505,9.85751206,216.21,216.17,4.62578814]
[1756434082004,9.85751206,216.21,216.16,43.22619756]
[1756434082005,9.85751206,216.18,216.16,43.22619756]
[1756434082306,9.85751206,216.18,216.13,43.22684495]
[1756434082523,9.85751206,216.17,216.13,43.22684495]
[1756434083112,9.85751206,216.16,216.13,4.62684495]
[1756434083296,9.85751206,216.14,216.11,43.20706955]
[1756434083608,10.56751206,216.24,216.14,27.00432314]
[1756434083787,9.91751206,216.26,216.19,9.85751206]
[1756434084104,9.85751206,216.24,216.18,35.85751206]
[1756434084310,9.85751206,216.23,216.16,18.50611996]
[1756434084514,9.85751206,216.23,216.17,9.85751206]
[1756434084683,9.85751206,216.24,216.18,9.85751206]
[1756434085025,9.85751206,216.25,216.19,9.85751206]
[1756434085508,9.85751206,216.24,216.18,9.85751206]
[1756434086213,9.85751206,216.24,216.17,10.57751206]
[1756434087027,0.06,216.26,216.23,9.85751206]
[1756434087229,0.06,216.26,216.21,26.0]
[1756434087521,0.06,216.26,216.21,48.45751206]
[1756434087725,0.06,216.26,216.21,49.17751206]
[1756434087892,9.85751206,216.22,216.16,1.854041]
[1756434088092,9.85751206,216.17,216.1,4.62748727]
[1756434088293,9.85751206,216.15,216.1,4.62748727]
[1756434088515,9.85751206,216.15,216.1,5.34748727]
[1756434089592,9.85751206,216.16,216.11,0.72]
[1756434089789,9.85751206,216.17,216.12,0.72]
[1756434090022,9.85751206,216.18,216.13,0.72]
[1756434090311,9.85751206,216.18,216.13,14.72]
[1756434090513,9.85751206,216.18,216.13,14.0]
[1756434091013,9.85751206,216.16,216.13,14.0]
[1756434091318,9.85751206,216.14,216.09,38.69]
[1756434091619,9.85751206,216.1,216.09,0.03]
[1756434091929,4.62513608,216.21,216.09,0.03]
[1756434092089,0.68,216.2,216.14,9.85751206]
[1756434092293,0.68,216.2,216.15,9.85751206]
[1756434092794,10.53751206,216.2,216.15,9.85751206]
[1756434093018,10.53751206,216.2,216.14,9.85751206]
[1756434093206,9.85751206,216.18,216.13,9.85751206]
[1756434093399,0.68,216.17,216.13,4.62667718]
[1756434093819,9.85751206,216.19,216.13,14.48418924]
[1756434094200,9.85751206,216.19,216.13,28.48418924]
[1756434094518,0.68,216.22,216.15,9.85751206]
[1756434094723,9.85751206,216.21,216.15,9.85751206]
[1756434095021,0.68,216.22,216.16,4.62620281]
[1756434095330,0.06,216.26,216.18,9.85751206]
[1756434095620,9.85751206,216.24,216.18,9.85751206]
[1756434095823,9.85751206,216.23,216.17,9.85751206]
[1756434096397,0.68,216.24,216.17,9.85751206]
[1756434096622,9.85751206,216.23,216.17,9.85751206]
[1756434096924,9.85751206,216.24,216.18,9.85751206]
[1756434097148,9.85751206,216.25,216.2,4.6253469]